fUST/lending_fUST_20240421
["ID","MTS","AMOUNT","RATE_DAILY","PERIOD"]
[323119369,1713682248440,-500.0,0.00022191,2]
[323119370,1713682248449,-500.0,0.00022191,2]
[323119371,1713682248459,-6566.31,0.00022191,2]
[323119372,1713682248468,-500.0,0.00022191,2]
[323119373,1713682248477,-500.0,0.00022191,2]
[323119374,1713682248488,-1558.88,0.00022191,2]
[323119375,1713682248497,-1397.36,0.00022191,2]
[323119376,1713682248505,-500.0,0.00022191,2]
[323119377,1713682248515,-500.0,0.00022191,2]
[323119378,1713682248525,-1887.29680421,0.00022191,2]
[323119379,1713682248534,-500.0,0.00022191,2]
[323119380,1713682248544,-500.0,0.00022191,2]
[323119381,1713682248553,-500.0,0.00022191,2]
[323119382,1713682248562,-500.0,0.00022191,2]
[323119383,1713682248572,-554.09,0.00022191,2]
[323119384,1713682248581,-1938.71,0.00022191,2]
[323119385,1713682248590,-151.0,0.00022191,2]
[323119386,1713682248599,-151.0,0.00022191,2]
[323119387,1713682248608,-151.0,0.00022191,2]
[323119388,1713682248617,-173.76218,0.00022191,2]
[323119389,1713682248626,-500.0,0.00022191,2]
[323119390,1713682248635,-153.0,0.000222,2]
[323119391,1713682248645,-511.92278404,0.00022314,2]
[323119392,1713682248654,-150.0,0.00022363,2]
[323119393,1713682248663,-302.0,0.000224,2]
[323119394,1713682248673,-500.0,0.00022464,2]
[323119395,1713682248682,-248.79138308,0.00022464,2]
[323119396,1713682248692,-2037.92,0.00022464,2]
[323119397,1713682248701,-2037.92,0.00022464,2]
[323119398,1713682248710,-2037.92,0.00022464,2]
[323119399,1713682248719,-2037.92,0.00022464,2]
[323119400,1713682248728,-2037.92,0.00022464,2]
[323119401,1713682248739,-500.0,0.00022465,2]
[323119402,1713682248748,-500.0,0.00022465,2]
[323119403,1713682248757,-500.0,0.00022465,2]
[323119404,1713682248766,-500.00024325,0.00022465,2]
[323119405,1713682248776,-500.0,0.00022465,2]
[323119406,1713682248785,-500.0,0.00022465,2]
[323119407,1713682248794,-500.0,0.00022465,2]
[323119408,1713682248803,-500.0,0.00022465,2]
[323119409,1713682248812,-500.0,0.00022465,2]
[323119410,1713682248821,-500.0,0.00022465,2]
[323119411,1713682248831,-500.0,0.00022465,2]
[323119412,1713682248840,-500.0,0.00022465,2]
[323119413,1713682248849,-502.73353405,0.00022465,2]
[323119414,1713682248858,-500.0,0.00022465,2]
[323119415,1713682248867,-500.0,0.00022465,2]
[323119416,1713682248876,-500.0,0.00022465,2]
[323119417,1713682248885,-500.0,0.00022465,2]
[323119418,1713682248894,-500.0,0.00022465,2]
[323119419,1713682248903,-500.0,0.00022465,2]
[323119420,1713682248913,-500.0,0.00022465,2]
[323119421,1713682248922,-500.0,0.00022465,2]
[323119422,1713682248931,-500.0,0.00022465,2]
[323119423,1713682248940,-500.0,0.00022465,2]
[323119424,1713682248949,-500.0,0.00022465,2]
[323119425,1713682248960,-895.86,0.00022465,2]
[323119426,1713682248969,-500.0,0.00022465,2]
[323119427,1713682248978,-500.0,0.00022465,2]
[323119428,1713682248990,-500.0,0.00022465,2]
[323119429,1713682248999,-500.0,0.00022465,2]
[323119430,1713682249009,-252.16044463,0.00022465,2]
[323119431,1713682249018,-500.0,0.00022465,2]
[323119432,1713682249028,-500.0,0.00022465,2]
[323119433,1713682249038,-500.0,0.00022465,2]
[323119434,1713682249048,-500.0,0.00022465,2]
[323119435,1713682249057,-500.0,0.00022465,2]
[323119436,1713682249066,-500.0,0.00022465,2]
[323119437,1713682249075,-500.0,0.00022465,2]
[323119438,1713682249084,-500.0,0.00022465,2]
[323119439,1713682249094,-500.0,0.00022465,2]
[323119440,1713682249102,-500.0,0.00022465,2]
[323119441,1713682249111,-500.0,0.00022465,2]
[323119442,1713682249121,-500.0,0.00022465,2]
[323119443,1713682249130,-500.0,0.00022465,2]
[323119444,1713682249139,-567.18569427,0.00022465,2]
[323119445,1713682249149,-521.66796182,0.00022465,2]
[323119446,1713682249158,-500.0,0.00022465,2]
[323119447,1713682249167,-539.54,0.00022465,2]
[323119448,1713682249176,-151.0,0.00022465,2]
[323119449,1713682249185,-151.0,0.00022465,2]
[323119450,1713682249194,-500.0,0.00022465,2]
[323119451,1713682249203,-418.89485298,0.00022465,2]
[323119452,1713682249211,-500.0,0.00022465,2]
[323119453,1713682249220,-500.0,0.00022465,2]
[323119454,1713682249230,-500.0,0.00022465,2]
[323119455,1713682249242,-500.0,0.00022465,2]
[323119456,1713682249251,-500.0,0.00022465,2]
[323119457,1713682249260,-501.56112135,0.00022465,2]
[323119458,1713682249269,-500.0,0.00022465,2]
[323119459,1713682249280,-500.0,0.00022465,2]
[323119460,1713682249344,-500.0,0.00022465,2]
[323119461,1713682249354,-2897.85,0.00022465,2]
[323119462,1713682249363,-500.0,0.00022465,2]
[323119463,1713682249372,-500.0,0.00022465,2]
[323119464,1713682249381,-500.0,0.00022465,2]
[323119465,1713682249390,-668.25,0.00022465,2]
[323119466,1713682249399,-500.0,0.00022465,2]
[323119467,1713682249408,-500.0,0.00022465,2]
[323119468,1713682249417,-504.22179746,0.00022465,2]
[323119469,1713682249426,-500.0,0.00022465,2]
[323119470,1713682249434,-500.0,0.00022465,2]
[323119471,1713682249444,-500.0,0.00022465,2]
[323119472,1713682249453,-500.0,0.00022465,2]
[323119473,1713682249462,-500.0,0.00022465,2]
[323119474,1713682249470,-151.0,0.00022465,2]
[323119475,1713682249479,-151.0,0.00022465,2]
[323119476,1713682249488,-151.0,0.00022465,2]
[323119477,1713682249498,-500.0,0.00022465,2]
[323119478,1713682249507,-500.0,0.00022465,2]
[323119479,1713682249517,-500.0,0.00022465,2]
[323119480,1713682249526,-926.17,0.00022465,2]
[323119481,1713682249535,-502.51233475,0.00022465,2]
[323119482,1713682249544,-500.0,0.00022465,2]
[323119483,1713682249554,-500.0,0.00022465,2]
[323119484,1713682249563,-500.0,0.00022465,2]
[323119485,1713682249573,-600.82,0.00022465,2]
[323119486,1713682249582,-500.0,0.00022465,2]
[323119487,1713682249593,-502.5443026,0.00022465,2]
[323119488,1713682249602,-1032.11,0.00022465,2]
[323119489,1713682249611,-500.0,0.00022465,2]
[323119490,1713682249621,-500.0,0.00022465,2]
[323119491,1713682249630,-508.63255559,0.00022465,2]
[323119492,1713682249640,-500.0,0.00022465,2]
[323119493,1713682249651,-500.0,0.00022465,2]
[323119494,1713682249660,-1200.37,0.00022465,2]
[323119495,1713682249670,-751.54,0.00022465,2]
[323119496,1713682249679,-500.0,0.00022465,2]
[323119497,1713682249688,-500.0,0.00022465,2]
[323119498,1713682249697,-500.0,0.00022465,2]
[323119499,1713682249706,-500.0,0.00022465,2]
[323119500,1713682249715,-500.0,0.00022465,2]
[323119501,1713682249725,-500.0,0.00022465,2]
[323119502,1713682249734,-823.34,0.00022465,2]
[323119503,1713682249744,-500.0,0.00022465,2]
[323119504,1713682249753,-500.0,0.00022465,2]
[323119505,1713682249762,-500.0,0.00022465,2]
[323119506,1713682249771,-500.0,0.00022465,2]
[323119507,1713682249779,-500.0,0.00022465,2]
[323119508,1713682249789,-500.0,0.00022465,2]
[323119509,1713682249798,-500.0,0.00022465,2]
[323119510,1713682249806,-500.0,0.00022465,2]
[323119511,1713682249815,-504.02655602,0.00022465,2]
[323119512,1713682249824,-151.0,0.00022465,2]
[323119513,1713682249833,-1463.78,0.00022465,2]
[323119514,1713682249842,-980.47,0.00022465,2]
[323119515,1713682249852,-1041.63,0.00022465,2]
[323119516,1713682249860,-500.0,0.00022465,2]
[323119517,1713682249869,-357.40759762,0.00022465,2]
[323119518,1713682249878,-500.0,0.00022465,2]
[323119519,1713682249887,-500.0,0.00022465,2]
[323119520,1713682249896,-500.0,0.00022465,2]
[323119521,1713682249906,-1235.19,0.00022465,2]
[323119522,1713682249914,-550.81,0.00022465,2]
[323119523,1713682249924,-500.0,0.00022465,2]
[323119524,1713682249933,-500.0,0.00022465,2]
[323119525,1713682249942,-161.700042,0.00022465,2]
[323119526,1713682249952,-500.0,0.00022465,2]
[323119527,1713682249961,-1709.09,0.00022465,2]
[323119528,1713682249970,-502.33869772,0.00022465,2]
[323119529,1713682249979,-500.0,0.00022465,2]
[323119530,1713682249989,-500.0,0.00022465,2]
[323119531,1713682249998,-500.0,0.00022465,2]
[323119532,1713682250008,-500.0,0.00022465,2]
[323119533,1713682250018,-500.0,0.00022465,2]
[323119534,1713682250027,-500.0,0.00022465,2]
[323119535,1713682250036,-2893.04,0.00022465,2]
[323119536,1713682250045,-500.0,0.00022465,2]
[323119537,1713682250054,-519.8426737,0.00022465,2]
[323119538,1713682250063,-500.0,0.00022465,2]
[323119539,1713682250073,-528.12074767,0.00022465,2]
[323119540,1713682250082,-500.0,0.00022465,2]
[323119541,1713682250091,-500.0,0.00022465,2]
[323119542,1713682250101,-2003.26,0.00022465,2]
[323119543,1713682250110,-256.25731363,0.00022465,2]
[323119544,1713682250119,-500.0,0.00022465,2]
[323119545,1713682250128,-500.0,0.00022465,2]
[323119546,1713682250138,-500.0,0.00022465,2]
[323119547,1713682250147,-500.0,0.00022465,2]
[323119548,1713682250156,-500.0,0.00022465,2]
[323119549,1713682250165,-1858.5,0.00022465,2]
[323119550,1713682250175,-859.85,0.00022465,2]
[323119551,1713682250184,-500.0,0.00022465,2]
[323119552,1713682250193,-500.0,0.00022465,2]
[323119553,1713682250203,-500.0,0.00022465,2]
[323119554,1713682250212,-500.0,0.00022465,2]
[323119555,1713682250221,-500.0,0.00022465,2]
[323119556,1713682250231,-1129.46,0.00022465,2]
[323119557,1713682250244,-2335.39,0.00022465,2]
[323119558,1713682250253,-500.0,0.00022465,2]
[323119559,1713682250317,-500.0,0.00022465,2]
[323119560,1713682250327,-500.0,0.00022465,2]
[323119561,1713682250336,-500.0,0.00022465,2]
[323119562,1713682250345,-500.0,0.00022465,2]
[323119563,1713682250354,-500.0,0.00022465,2]
[323119564,1713682250363,-318.99552843,0.00022465,2]
[323119565,1713682250372,-502.74782748,0.00022465,2]
[323119566,1713682250381,-500.0,0.00022465,2]
[323119567,1713682250391,-808.13,0.00022465,2]
[323119568,1713682250401,-500.0,0.00022465,2]
[323119569,1713682250410,-847.92,0.00022465,2]
[323119570,1713682250419,-500.0,0.00022465,2]
[323119571,1713682250429,-500.0,0.00022465,2]
[323119572,1713682250439,-500.0,0.00022465,2]
[323119573,1713682250448,-531.39220395,0.00022465,2]
[323119574,1713682250457,-500.0,0.00022465,2]
[323119575,1713682250466,-2528.35,0.00022465,2]
[323119576,1713682250475,-597.8855966,0.00022465,2]
[323119577,1713682250485,-500.0,0.00022465,2]
[323119578,1713682250496,-184.020604,0.00022465,2]
[323119579,1713682250505,-184.020604,0.00022465,2]
[323119580,1713682250515,-500.0,0.00022465,2]
[323119581,1713682250524,-500.0,0.00022465,2]
[323119582,1713682250534,-184.020604,0.00022465,2]
[323119583,1713682250544,-646.25322905,0.00022465,2]
[323119584,1713682250554,-1137.12,0.00022465,2]
[323119585,1713682250563,-500.0,0.00022465,2]
[323119586,1713682250573,-184.020604,0.00022465,2]
[323119587,1713682250582,-184.020604,0.00022465,2]
[323119588,1713682250592,-184.020604,0.00022465,2]
[323119589,1713682250601,-500.0,0.00022465,2]
[323119590,1713682250610,-414.250954,0.00022465,2]
[323119591,1713682250619,-414.250954,0.00022465,2]
[323119592,1713682250628,-500.0,0.00022465,2]
[323119593,1713682250638,-414.250954,0.00022465,2]
[323119594,1713682250648,-500.0,0.00022465,2]
[323119595,1713682250657,-414.250954,0.00022465,2]
[323119596,1713682250667,-414.250954,0.00022465,2]
[323119597,1713682250677,-414.250954,0.00022465,2]
[323119598,1713682250686,-1992.64,0.00022465,2]
[323119599,1713682250696,-1173.14,0.00022465,2]
[323119600,1713682250706,-500.0,0.00022465,2]
[323119601,1713682250715,-500.0,0.00022465,2]
[323119602,1713682250725,-500.0,0.00022465,2]
[323119603,1713682250735,-500.0,0.00022465,2]
[323119604,1713682250753,-573.08796358,0.00022465,2]
[323119605,1713682250770,-5785.47,0.00022465,2]
[323119606,1713682250790,-500.0,0.00022465,2]
[323119607,1713682250810,-1011.32531507,0.00022465,2]
[323119608,1713682250826,-1195.65,0.00022465,2]
[323119609,1713682250843,-500.0,0.00022465,2]
[323119610,1713682250862,-500.0,0.00022465,2]
[323119611,1713682250878,-1082.6,0.00022465,2]
[323119612,1713682250896,-500.0,0.00022465,2]
[323119613,1713682250912,-502.19659432,0.00022465,2]
[323119614,1713682250931,-865.36,0.00022465,2]
[323119615,1713682250951,-585.82,0.00022465,2]
[323119616,1713682250966,-513.23,0.00022465,2]
[323119617,1713682250980,-500.0,0.00022465,2]
[323119618,1713682250997,-920.24,0.00022465,2]
[323119619,1713682251011,-500.0,0.00022465,2]
[323119620,1713682251025,-228.56938211,0.00022465,2]
[323119621,1713682251040,-166.722068,0.00022465,2]
[323119622,1713682251054,-166.722068,0.00022465,2]
[323119623,1713682251068,-166.722068,0.00022465,2]
[323119624,1713682251082,-500.0,0.00022465,2]
[323119625,1713682251096,-500.0,0.00022465,2]
[323119626,1713682251110,-387.9751491,0.00022465,2]
[323119627,1713682251124,-166.722068,0.00022465,2]
[323119628,1713682251138,-166.722068,0.00022465,2]
[323119629,1713682251152,-500.0,0.00022465,2]
[323119630,1713682251166,-166.722068,0.00022465,2]
[323119631,1713682251179,-500.0,0.00022465,2]
[323119632,1713682251194,-626.07,0.00022465,2]
[323119633,1713682251209,-500.0,0.00022465,2]
[323119634,1713682251223,-500.0,0.00022465,2]
[323119635,1713682251240,-829.79,0.00022465,2]
[323119636,1713682251256,-500.0,0.00022465,2]
[323119637,1713682251271,-512.20799457,0.00022465,2]
[323119638,1713682251286,-685.85,0.00022465,2]
[323119639,1713682251300,-3764.97,0.00022465,2]
[323119640,1713682251317,-924.74,0.00022465,2]
[323119641,1713682251332,-500.0,0.00022465,2]
[323119642,1713682251346,-500.0,0.00022465,2]
[323119643,1713682251360,-500.0,0.00022465,2]
[323119644,1713682251375,-500.0,0.00022465,2]
[323119645,1713682251389,-500.0,0.00022465,2]
[323119646,1713682251403,-3553.7,0.00022465,2]
[323119647,1713682251417,-390.135278,0.00022465,2]
[323119648,1713682251430,-390.135278,0.00022465,2]
[323119649,1713682251445,-505.44006194,0.00022465,2]
[323119650,1713682251555,-500.0,0.00022465,2]
[323119651,1713682251566,-390.135278,0.00022465,2]
[323119652,1713682251578,-390.135278,0.00022465,2]
[323119653,1713682251588,-500.0,0.00022465,2]
[323119654,1713682251598,-219.10325438,0.00022465,2]
[323119655,1713682251608,-500.0,0.00022465,2]
[323119656,1713682251618,-500.0,0.00022465,2]
[323119657,1713682251627,-500.0,0.00022465,2]
[323119658,1713682251637,-500.0,0.00022465,2]
[323119659,1713682251646,-3076.51,0.00022465,2]
[323119660,1713682251656,-2283.51,0.00022465,2]
[323119661,1713682251665,-500.0,0.00022465,2]
[323119662,1713682251675,-500.0,0.00022465,2]
[323119663,1713682251684,-545.24,0.00022465,2]
[323119664,1713682251693,-500.0,0.00022465,2]
[323119665,1713682251703,-500.0,0.00022465,2]
[323119666,1713682251712,-500.0,0.00022465,2]
[323119667,1713682251722,-605.36,0.00022465,2]
[323119668,1713682251731,-500.0,0.00022465,2]
[323119669,1713682251740,-500.0,0.00022465,2]
[323119670,1713682251750,-500.0,0.00022465,2]
[323119671,1713682251759,-500.0,0.00022465,2]
[323119672,1713682251769,-500.0,0.00022465,2]
[323119673,1713682251778,-500.0,0.00022465,2]
[323119674,1713682251787,-500.0,0.00022465,2]
[323119675,1713682251797,-2074.47,0.00022465,2]
[323119676,1713682251806,-500.0,0.00022465,2]
[323119677,1713682251815,-55793.57,0.00022465,2]
[323119678,1713682251826,-472.74861449,0.00022465,2]
[323119679,1713682251835,-500.0,0.00022465,2]
[323119680,1713682251846,-571.08,0.00022465,2]
[323119681,1713682251856,-641.6,0.00022465,2]
[323119682,1713682251865,-500.0,0.00022465,2]
[323119683,1713682251876,-500.0,0.00022465,2]
[323119684,1713682251885,-500.0,0.00022465,2]
[323119685,1713682251894,-620.84137813,0.00022465,2]
[323119686,1713682251904,-500.0,0.00022465,2]
[323119687,1713682251915,-2161.83,0.00022465,2]
[323119688,1713682251925,-500.0,0.00022465,2]
[323119689,1713682251934,-542.23,0.00022465,2]
[323119690,1713682251944,-3661.29,0.00022465,2]
[323119691,1713682251953,-362.14182298,0.00022465,2]
[323119692,1713682251962,-500.0,0.00022465,2]
[323119693,1713682251972,-500.0,0.00022465,2]
[323119694,1713682251981,-382.40075971,0.00022465,2]
[323119695,1713682251990,-500.0,0.00022465,2]
[323119696,1713682252000,-1937.611243,0.00022465,2]
[323119697,1713682252010,-1937.611243,0.00022465,2]
[323119698,1713682252019,-1937.611243,0.00022465,2]
[323119699,1713682252029,-500.0,0.00022465,2]
[323119700,1713682252038,-650.2,0.00022465,2]
[323119701,1713682252049,-500.0,0.00022465,2]
[323119702,1713682252060,-1937.611243,0.00022465,2]
[323119703,1713682252069,-1937.611243,0.00022465,2]
[323119704,1713682252078,-1937.611251,0.00022465,2]
[323119705,1713682252087,-4628.55,0.00022465,2]
[323119706,1713682252097,-500.0,0.00022465,2]
[323119707,1713682252106,-500.0,0.00022465,2]
[323119708,1713682252115,-500.0,0.00022465,2]
[323119709,1713682252124,-1011.96,0.00022465,2]
[323119710,1713682252134,-8470.02,0.00022465,2]
[323119711,1713682252143,-151.0,0.00022465,2]
[323119712,1713682252152,-500.0,0.00022465,2]
[323119713,1713682252162,-500.0,0.00022465,2]
[323119714,1713682252172,-6566.31,0.00022465,2]
[323119715,1713682252181,-522.23343956,0.00022465,2]
[323119716,1713682252190,-500.0,0.00022465,2]
[323119717,1713682252199,-1558.88,0.00022465,2]
[323119718,1713682252208,-1397.36,0.00022465,2]
[323119719,1713682252218,-500.0,0.00022465,2]
[323119720,1713682252227,-500.0,0.00022465,2]
[323119721,1713682252241,-500.0,0.00022465,2]
[323119722,1713682252251,-526.88539729,0.00022465,2]
[323119723,1713682252260,-500.0,0.00022465,2]
[323119724,1713682252269,-500.0,0.00022465,2]
[323119725,1713682252277,-554.09,0.00022465,2]
[323119726,1713682252288,-1938.71,0.00022465,2]
[323119727,1713682252298,-500.0,0.00022465,2]
[323119728,1713682252307,-153.0,0.00022466,2]
[323119729,1713682252318,-153.0,0.00022466,2]
[323119730,1713682252327,-153.0,0.00022466,2]
[323119731,1713682252337,-153.0,0.00022466,2]
[323119732,1713682252346,-153.0,0.00022466,2]
[323119733,1713682252356,-153.0,0.00022466,2]
[323119734,1713682252366,-153.0,0.00022466,2]
[323119735,1713682252375,-153.0,0.00022466,2]
[323119736,1713682252384,-150.0,0.00022633,2]
[323119737,1713682252393,-390.135278,0.00022738,2]
[323119738,1713682252402,-390.135268,0.00022738,2]
[323119739,1713682252412,-2037.92,0.00022738,2]
[323119740,1713682252421,-2037.92,0.00022738,2]
[323119741,1713682252430,-2037.92,0.00022738,2]
[323119742,1713682252440,-2037.92,0.00022738,2]
[323119743,1713682252449,-2037.98883811,0.00022738,2]
[323119744,1713682252458,-500.0,0.00022739,2]
[323119745,1713682252467,-517.37732795,0.00022739,2]
[323119746,1713682252476,-239.00624697,0.00022739,2]
[323119747,1713682252486,-500.0,0.00022739,2]
[323119748,1713682252499,-500.0,0.00022739,2]
[323119749,1713682252508,-500.0,0.00022739,2]
[323119750,1713682252517,-500.0,0.00022739,2]
[323119751,1713682252527,-500.0,0.00022739,2]
[323119752,1713682252536,-500.0,0.00022739,2]
[323119753,1713682252545,-500.0,0.00022739,2]
[323119754,1713682252554,-500.0,0.00022739,2]
[323119755,1713682252564,-500.0,0.00022739,2]
[323119756,1713682252572,-500.0,0.00022739,2]
[323119757,1713682252583,-500.0,0.00022739,2]
[323119758,1713682252592,-500.0,0.00022739,2]
[323119759,1713682252601,-500.0,0.00022739,2]
[323119760,1713682252610,-500.0,0.00022739,2]
[323119761,1713682252620,-500.0,0.00022739,2]
[323119762,1713682252629,-303.42878118,0.00022739,2]
[323119763,1713682252638,-500.0,0.00022739,2]
[323119764,1713682252647,-500.0,0.00022739,2]
[323119765,1713682252657,-500.0,0.00022739,2]
[323119766,1713682252666,-895.86,0.00022739,2]
[323119767,1713682252675,-500.0,0.00022739,2]
[323119768,1713682252684,-500.0,0.00022739,2]
[323119769,1713682252694,-500.0,0.00022739,2]
[323119770,1713682252703,-500.0,0.00022739,2]
[323119771,1713682252714,-500.0,0.00022739,2]
[323119772,1713682252724,-500.0,0.00022739,2]
[323119773,1713682252734,-500.0,0.00022739,2]
[323119774,1713682252745,-500.0,0.00022739,2]
[323119775,1713682252817,-153.70776576,0.00022739,2]
[323119776,1713682252828,-500.0,0.00022739,2]
[323119777,1713682252838,-500.0,0.00022739,2]
[323119778,1713682252847,-592.28,0.00022739,2]
[323119779,1713682252857,-500.0,0.00022739,2]
[323119780,1713682252867,-500.0,0.00022739,2]
[323119781,1713682252876,-500.0,0.00022739,2]
[323119782,1713682252885,-500.0,0.00022739,2]
[323119783,1713682252894,-500.0,0.00022739,2]
[323119784,1713682252903,-500.0,0.00022739,2]
[323119785,1713682252912,-539.54,0.00022739,2]
[323119786,1713682252921,-500.0,0.00022739,2]
[323119787,1713682252930,-501.7281841,0.00022739,2]
[323119788,1713682252939,-502.84768752,0.00022739,2]
[323119789,1713682252949,-500.0,0.00022739,2]
[323119790,1713682252958,-500.0,0.00022739,2]
[323119791,1713682252967,-500.0,0.00022739,2]
[323119792,1713682252976,-500.0,0.00022739,2]
[323119793,1713682252985,-500.0,0.00022739,2]
[323119794,1713682252996,-500.0,0.00022739,2]
[323119795,1713682253005,-2897.85,0.00022739,2]
[323119796,1713682253014,-500.0,0.00022739,2]
[323119797,1713682253023,-500.0,0.00022739,2]
[323119798,1713682253031,-500.0,0.00022739,2]
[323119799,1713682253041,-668.25,0.00022739,2]
[323119800,1713682253050,-500.0,0.00022739,2]
[323119801,1713682253059,-500.0,0.00022739,2]
[323119802,1713682253069,-500.0,0.00022739,2]
[323119803,1713682253078,-500.0,0.00022739,2]
[323119804,1713682253088,-503.05114153,0.00022739,2]
[323119805,1713682253098,-500.0,0.00022739,2]
[323119806,1713682253109,-500.0,0.00022739,2]
[323119807,1713682253118,-500.0,0.00022739,2]
[323119808,1713682253127,-500.0,0.00022739,2]
[323119809,1713682253138,-500.0,0.00022739,2]
[323119810,1713682253147,-926.17,0.00022739,2]
[323119811,1713682253157,-500.0,0.00022739,2]
[323119812,1713682253166,-500.0,0.00022739,2]
[323119813,1713682253175,-500.0,0.00022739,2]
[323119814,1713682253184,-600.82,0.00022739,2]
[323119815,1713682253193,-527.86168637,0.00022739,2]
[323119816,1713682253203,-1032.11,0.00022739,2]
[323119817,1713682253214,-500.0,0.00022739,2]
[323119818,1713682253223,-500.0,0.00022739,2]
[323119819,1713682253233,-500.0,0.00022739,2]
[323119820,1713682253246,-503.72,0.00022739,2]
[323119821,1713682253256,-1200.37,0.00022739,2]
[323119822,1713682253265,-751.54,0.00022739,2]
[323119823,1713682253274,-500.0,0.00022739,2]
[323119824,1713682253283,-500.0,0.00022739,2]
[323119825,1713682253293,-500.0,0.00022739,2]
[323119826,1713682253302,-500.0,0.00022739,2]
[323119827,1713682253312,-500.0,0.00022739,2]
[323119828,1713682253321,-500.0,0.00022739,2]
[323119829,1713682253330,-823.34,0.00022739,2]
[323119830,1713682253340,-500.0,0.00022739,2]
[323119831,1713682253349,-500.0,0.00022739,2]
[323119832,1713682253358,-545.35926924,0.00022739,2]
[323119833,1713682253367,-500.0,0.00022739,2]
[323119834,1713682253377,-500.0,0.00022739,2]
[323119835,1713682253386,-500.0,0.00022739,2]
[323119836,1713682253395,-500.0,0.00022739,2]
[323119837,1713682253404,-500.0,0.00022739,2]
[323119838,1713682253413,-1463.78,0.00022739,2]
[323119839,1713682253422,-980.47,0.00022739,2]
[323119840,1713682253431,-1041.63,0.00022739,2]
[323119841,1713682253440,-500.0,0.00022739,2]
[323119842,1713682253452,-500.0,0.00022739,2]
[323119843,1713682253461,-500.0,0.00022739,2]
[323119844,1713682253470,-259.25988984,0.00022739,2]
[323119845,1713682253480,-1235.19,0.00022739,2]
[323119846,1713682253490,-550.81,0.00022739,2]
[323119847,1713682253500,-500.0,0.00022739,2]
[323119848,1713682253509,-613.42850891,0.00022739,2]
[323119849,1713682253520,-500.0,0.00022739,2]
[323119850,1713682253529,-1709.09,0.00022739,2]
[323119851,1713682253538,-500.0,0.00022739,2]
[323119852,1713682253548,-502.43061477,0.00022739,2]
[323119853,1713682253557,-500.0,0.00022739,2]
[323119854,1713682253568,-572.39675591,0.00022739,2]
[323119855,1713682253577,-500.0,0.00022739,2]
[323119856,1713682253586,-2893.04,0.00022739,2]
[323119857,1713682253595,-500.0,0.00022739,2]
[323119858,1713682253604,-568.37878619,0.00022739,2]
[323119859,1713682253614,-500.0,0.00022739,2]
[323119860,1713682253623,-500.0,0.00022739,2]
[323119861,1713682253632,-2003.26,0.00022739,2]
[323119862,1713682253641,-503.46228556,0.00022739,2]
[323119863,1713682253650,-500.0,0.00022739,2]
[323119864,1713682253660,-500.0,0.00022739,2]
[323119865,1713682253669,-500.0,0.00022739,2]
[323119866,1713682253678,-1858.5,0.00022739,2]
[323119867,1713682253687,-859.85,0.00022739,2]
[323119868,1713682253696,-500.0,0.00022739,2]